bitfinex/quotes_ETHUSD_20260130
["timestamp","ask_amount","ask_price","bid_price","bid_amount"]
[1769786732729,5.248459,2729.5,2727.8,1.35333617]
[1769786732960,3.404459,2729.5,2727.7,0.002]
[1769786733467,9.718111,2729.3,2727.7,0.002]
[1769786733631,0.01103143,2729.2,2727.7,0.002]
[1769786733838,4.072146,2729.1,2727.7,0.002]
[1769786734157,7.512296,2728.8,2727.7,0.002]
[1769786734363,5.615108,2728.6,2727.7,0.002]
[1769786734657,2.21441,2728.6,2727.7,0.002]
[1769786735165,3.186777,2728.4,2727.7,0.002]
[1769786735361,0.01103143,2728.5,2727.7,0.002]
[1769786735730,0.01103143,2728.7,2727.7,0.002]
[1769786735936,0.769,2728.4,2727.7,0.002]
[1769786736763,0.769,2728.7,2727.7,0.002]
[1769786737267,0.11343143,2729.6,2727.7,0.002]
[1769786737562,5.830932,2729.1,2727.7,0.002]
[1769786737771,4.98063643,2729.0,2727.7,0.002]
[1769786737967,6.520709,2728.7,2727.7,0.002]
[1769786738163,4.69669,2728.7,2727.7,0.002]
[1769786738467,2.749315,2728.7,2727.7,0.002]
[1769786738641,0.27603464,2728.6,2727.7,0.002]
[1769786738850,2.831051,2728.7,2727.7,0.002]
[1769786739057,3.585345,2728.7,2727.7,0.002]
[1769786739370,0.01103143,2728.8,2727.7,0.002]
[1769786739544,0.48912863,2729.5,2727.7,0.002]
[1769786739745,0.769,2729.2,2727.7,0.002]
[1769786740054,6.144372,2729.0,2727.7,0.002]
[1769786740238,5.348992,2729.0,2727.7,0.002]
[1769786740438,0.01103143,2728.9,2727.7,0.002]
[1769786740762,0.01103143,2728.8,2727.7,0.002]
[1769786741067,6.18269,2729.0,2727.7,0.002]
[1769786741271,0.01103143,2728.5,2727.7,0.002]
[1769786741565,0.769,2728.4,2727.7,0.002]
[1769786741773,0.769,2728.3,2727.7,0.002]
[1769786742471,0.769,2728.4,2727.7,0.002]
[1769786743762,0.769,2728.6,2727.7,0.002]
[1769786744667,0.769,2728.8,2727.7,0.002]
[1769786745068,0.769,2728.8,2727.7,13.22854212]
[1769786745444,0.001,2729.7,2727.9,13.22654212]
[1769786745761,0.769,2729.6,2727.9,13.22654212]
[1769786746076,0.769,2729.6,2728.0,1.32265421]
[1769786747371,0.001,2728.8,2728.0,1.32265421]
[1769786748339,0.001,2729.7,2728.0,15.46561726]
[1769786749399,0.001,2729.7,2728.0,1.32265421]
[1769786749400,18.09067445,2729.6,2728.0,1.32265421]
[1769786749697,0.01203143,2729.7,2727.9,14.14299433]
[1769786749845,0.001,2729.7,2728.1,14.14291493]
[1769786750046,0.001,2729.7,2728.3,13.22654212]
[1769786750458,0.001,2729.7,2728.5,13.22654212]
[1769786751069,0.001,2729.7,2728.7,13.22654212]
[1769786751245,0.001,2730.0,2728.8,14.57255336]
[1769786751691,0.001,2730.0,2728.8,1.34601124]
[1769786751847,0.001,2730.0,2728.3,13.22654212]
[1769786752457,13.35835445,2729.8,2727.8,13.22654212]
[1769786752798,0.78003143,2729.7,2727.8,13.22654212]
[1769786752950,0.769,2729.7,2727.8,13.22654212]
[1769786753583,0.769,2729.7,2727.7,0.002]
[1769786753584,13.35835445,2729.5,2727.7,0.002]
[1769786753766,0.01103143,2728.6,2727.7,0.002]
[1769786753968,0.01103143,2728.6,2726.7,13.22854212]
[1769786753969,19.97908188,2728.4,2726.7,0.002]
[1769786754276,2.802245,2728.3,2726.7,0.002]
[1769786754450,13.36938588,2728.4,2726.7,0.002]
[1769786754650,0.768,2728.5,2726.7,0.002]
[1769786755181,0.01103143,2728.8,2726.7,14.14539755]
[1769786755361,0.769,2728.9,2727.0,13.46011242]
[1769786755968,2.750147,2728.8,2727.0,13.46011242]
[1769786756277,0.769,2728.9,2727.0,14.37686495]
[1769786756588,3.05460043,2728.8,2727.0,13.22654212]
[1769786756790,5.994786,2728.6,2727.1,1.32265421]
[1769786756991,5.994786,2728.6,2726.7,0.002]
[1769786756992,0.01103143,2728.4,2726.7,0.002]
[1769786757282,3.84002,2728.3,2726.7,0.002]
[1769786757481,0.01103143,2728.2,2726.7,0.002]
[1769786758986,0.769,2728.1,2727.2,0.002]
[1769786761181,6.169429,2727.9,2727.0,0.002]
[1769786761387,5.975583,2727.7,2727.0,0.0012]
[1769786761562,0.01103143,2727.6,2726.7,0.002]
[1769786761762,0.01103143,2727.4,2726.7,0.002]
[1769786761962,11.630648,2727.3,2726.7,0.002]
[1769786762190,8.918621,2727.3,2726.7,0.002]
[1769786762391,0.01103143,2727.4,2725.9,0.002]
[1769786762392,0.42072307,2727.2,2725.9,0.002]
[1769786762711,0.01103143,2727.0,2725.9,0.002]
[1769786762859,0.01103143,2726.8,2725.9,0.002]
[1769786763207,0.01103143,2726.6,2725.9,0.002]
[1769786763495,0.01103143,2726.1,2723.9,13.22654212]
[1769786763800,0.01103143,2725.9,2723.9,14.14431432]
[1769786763972,0.01103143,2725.9,2724.0,0.91775726]
[1769786764171,0.01103143,2725.9,2723.9,13.22654212]
[1769786764375,0.01103143,2725.9,2723.9,14.14431673]
[1769786764583,0.01103143,2725.7,2723.9,14.14431673]
[1769786764791,0.01103143,2725.7,2723.9,13.22654212]
[1769786764971,4.133127,2725.8,2723.9,14.1443268]
[1769786765387,2.2,2725.8,2723.9,14.1443268]
[1769786765587,0.01103143,2725.7,2723.9,14.1443268]
[1769786765969,0.01103143,2725.5,2723.9,13.22654212]
[1769786766169,0.01103143,2725.5,2724.0,1.32265421]
[1769786766364,0.01103143,2725.7,2724.0,1.32265421]
[1769786766680,0.01103143,2725.4,2724.0,1.32265421]
[1769786766881,0.01103143,2725.1,2723.4,13.96156793]
[1769786767095,0.769,2725.0,2723.4,13.96156793]
[1769786767295,0.769,2725.0,2723.1,0.95861994]
[1769786767296,0.01103143,2724.9,2723.1,0.95861994]
[1769786767467,0.769,2724.8,2723.1,0.91807037]
[1769786767667,0.769,2724.8,2723.1,13.96156793]
[1769786767886,0.769,2724.8,2723.2,2.31418934]
[1769786768092,0.769,2724.8,2723.2,1.39615679]
[1769786768302,0.769,2724.8,2723.2,2.31419243]
[1769786768807,14.62722627,2724.8,2723.2,1.39615679]
[1769786768964,14.62722627,2724.8,2722.6,13.96156793]
[1769786768965,11.382016,2724.3,2722.6,13.96156793]
[1769786769166,0.01103143,2724.2,2722.6,13.96156793]
[1769786769489,0.01103143,2724.0,2722.6,13.96156793]
[1769786769693,0.01103143,2724.0,2722.7,1.39615679]
[1769786769897,0.01103143,2724.0,2722.5,0.91827162]
[1769786770262,0.01103143,2724.2,2722.4,0.002]
[1769786770665,0.01103143,2724.0,2722.4,0.002]
[1769786771866,0.01103143,2723.8,2722.4,0.002]
[1769786772164,0.01103143,2724.4,2722.5,13.96156793]
[1769786772369,0.61804604,2724.4,2724.2,0.002]
[1769786772692,0.01103143,2724.3,2722.6,15.35792472]
[1769786773197,0.92845017,2725.1,2722.6,15.35792472]
[1769786773198,0.01203143,2725.2,2722.8,13.96156793]
[1769786773402,0.01103143,2724.8,2724.0,0.002]
[1769786773575,0.01103143,2724.4,2722.8,13.96156793]
[1769786773779,0.01103143,2724.4,2722.9,1.39615679]
[1769786773968,0.01103143,2724.6,2722.9,1.39615679]
[1769786774164,0.01103143,2724.3,2722.9,1.39615679]
[1769786774372,0.01103143,2723.9,2722.9,0.002]
[1769786774688,0.01103143,2723.7,2722.9,0.002]
[1769786774878,0.01103143,2723.5,2722.9,0.002]
[1769786776292,0.01103143,2723.7,2722.9,0.002]
[1769786776612,0.01103143,2723.5,2722.9,0.002]
[1769786777203,0.01103143,2723.3,2722.4,0.002]
[1769786777492,0.01103143,2723.5,2722.4,0.002]
[1769786777493,0.01103143,2723.2,2722.4,0.002]
[1769786777864,0.01103143,2723.0,2722.4,0.002]
[1769786778106,0.01103143,2723.1,2722.4,0.002]
[1769786779003,0.77,2723.1,2722.4,0.002]
[1769786779176,0.01103143,2723.3,2722.4,0.002]
[1769786779375,0.01103143,2723.2,2722.4,0.002]
[1769786779598,0.01103143,2723.1,2722.4,0.002]
[1769786779772,0.78103143,2723.3,2722.4,0.002]
[1769786780169,0.01103143,2723.1,2722.4,0.002]
[1769786780375,0.01103143,2722.7,2721.2,0.003]
[1769786780603,0.01103143,2722.3,2721.2,0.003]
[1769786780926,0.01103143,2722.1,2721.2,0.003]
[1769786781102,0.01103143,2721.7,2721.2,0.003]
[1769786781275,0.01103143,2721.3,2719.8,3.18502483]
[1769786781473,0.01103143,2721.3,2719.8,2.2658409]
[1769786781790,0.01103143,2720.9,2719.9,1.71466042]
[1769786781991,0.01103143,2721.1,2719.2,14.88093505]
[1769786782195,0.01103143,2720.8,2719.2,13.96156793]
[1769786782520,0.01103143,2720.8,2718.5,0.20238782]
[1769786782521,0.01103143,2720.1,2718.3,13.96156793]
[1769786782812,0.01103143,2719.9,2718.3,13.96156793]
[1769786782970,0.01103143,2720.0,2718.4,13.96156793]
[1769786783292,0.01103265,2720.2,2718.8,0.91951387]
[1769786783482,0.01103143,2721.1,2719.2,14.88095114]
[1769786784008,0.01103143,2721.5,2719.3,0.2335703]
[1769786784231,0.01103265,2721.9,2720.1,0.2335703]
[1769786784370,0.01103265,2722.3,2720.6,14.88048287]
[1769786784574,0.01103265,2722.5,2720.6,14.88048287]
[1769786784575,0.01103265,2722.5,2720.7,1.85561426]
[1769786784809,0.01103265,2721.9,2720.7,1.85561426]
[1769786785012,0.01103265,2722.0,2719.7,13.96156793]
[1769786785208,0.01103265,2722.0,2719.1,13.96156793]
[1769786785209,0.01103265,2720.9,2719.1,13.96156793]
[1769786785409,0.01103265,2720.3,2719.1,0.9194205]
[1769786785580,0.01103265,2720.7,2719.1,0.9194205]
[1769786785780,0.57560634,2722.0,2719.1,0.9194205]
[1769786785781,0.01103265,2721.2,2719.3,13.96156793]
[1769786785976,0.01103265,2720.4,2719.2,0.45971341]
[1769786786204,0.01103265,2720.6,2720.1,0.002]
[1769786786391,0.01103265,2721.0,2720.1,0.002]
[1769786786577,0.01103265,2720.2,2719.9,0.002]
[1769786786782,0.01103265,2720.0,2718.8,1.23082966]
[1769786787100,0.01103265,2720.4,2718.8,1.23082966]
[1769786787298,0.01103265,2719.5,2718.8,0.002]
[1769786787610,0.78103265,2720.4,2718.8,0.002]
[1769786787611,0.01103265,2719.8,2718.8,0.002]
[1769786787811,0.01103265,2720.2,2718.8,0.92151257]
[1769786788106,0.01103265,2720.3,2718.8,0.002]
[1769786788307,0.01103265,2720.3,2718.8,0.92152302]
[1769786788513,0.01103265,2721.0,2719.2,13.96156793]
[1769786788718,0.01103265,2720.8,2719.3,1.41951382]
[1769786788917,0.01103265,2720.4,2719.3,1.41951382]
[1769786789209,0.01103265,2720.3,2718.9,13.96156793]
[1769786789523,0.01103265,2720.6,2718.9,13.96156793]
[1769786789682,0.01103265,2721.2,2718.9,13.96156793]
[1769786789880,0.01103265,2721.1,2719.5,13.96156793]
[1769786790098,0.01103265,2720.7,2719.5,13.96156793]
[1769786790380,0.01103265,2720.4,2719.6,1.39615679]
[1769786790584,0.01103265,2720.2,2719.0,13.96156793]
[1769786790815,0.01103265,2720.4,2719.1,0.2335703]
[1769786791017,0.01103265,2721.8,2719.6,14.88080982]
[1769786791187,0.01103265,2720.9,2719.1,13.96156793]
[1769786791383,0.01103265,2720.8,2719.1,13.96156793]
[1769786791715,0.77,2721.9,2718.8,0.002]
[1769786791716,0.01103265,2721.4,2719.8,13.96156793]
[1769786791914,0.01103265,2721.2,2719.8,13.96156793]
[1769786792217,0.01103265,2721.7,2719.6,0.91925183]
[1769786792422,0.01103265,2721.3,2719.6,15.65081976]
[1769786792734,0.01103265,2721.3,2719.2,15.35772472]
[1769786792735,0.01103265,2720.6,2719.2,15.35772472]
[1769786792883,0.01103265,2720.8,2719.3,1.53577247]
[1769786793079,0.01103265,2721.1,2719.4,0.91929959]
[1769786793388,0.01103265,2721.1,2719.3,15.4973404]
[1769786793599,0.01103265,2721.1,2719.3,1.53577247]
[1769786793600,0.01103265,2720.3,2719.3,1.53577247]
[1769786793897,0.01103265,2720.7,2718.8,13.96356793]
[1769786794113,0.01103265,2720.9,2718.9,14.73256793]
[1769786794315,0.01103265,2720.8,2718.9,14.73256793]
[1769786794496,0.01103265,2720.6,2719.0,0.91945568]
[1769786794702,0.01103265,2720.5,2719.1,1.56520236]
[1769786794985,0.01103265,2720.2,2719.1,1.56520236]
[1769786795187,0.01103265,2720.2,2718.9,0.771]
[1769786795389,0.01103265,2720.6,2718.8,0.002]
[1769786795390,0.01103265,2720.3,2718.8,0.002]
[1769786795591,0.01103265,2719.9,2718.8,0.002]
[1769786795792,0.01103265,2719.7,2718.8,0.002]
[1769786796117,0.01103265,2719.8,2718.8,0.002]
[1769786796316,0.01103265,2719.4,2718.8,0.002]
[1769786796501,0.01103265,2720.1,2718.8,0.002]
[1769786796713,0.01103265,2719.6,2718.8,0.002]
[1769786796884,0.01103265,2720.1,2718.8,0.002]
[1769786797084,13.81475206,2721.4,2718.8,12.69048704]
[1769786797285,0.01103265,2721.1,2719.2,0.2335703]
[1769786797513,0.01103265,2721.1,2718.9,1.2690487]
[1769786797514,0.01103265,2719.7,2718.9,1.2690487]
[1769786797829,0.01103265,2720.1,2718.8,0.002]
[1769786798128,0.01103265,2719.7,2718.8,0.002]
[1769786798444,0.01103265,2719.7,2717.8,0.00209661]
[1769786798445,0.01103265,2719.1,2717.8,0.00209661]
[1769786798722,0.01103265,2718.9,2717.8,0.00209661]
[1769786798884,0.01103265,2718.7,2717.8,0.00209661]
[1769786799085,0.01103651,2718.3,2716.5,13.36904499]
[1769786799294,0.01103651,2718.1,2716.7,1.46023428]
[1769786799493,0.01103651,2718.6,2716.9,0.9201353]
[1769786799695,0.01103651,2718.2,2716.7,14.82927927]
[1769786799916,0.01103651,2718.6,2716.7,14.82927927]
[1769786800116,0.01103894,2718.4,2716.8,0.92017828]
[1769786800316,0.01103651,2718.6,2716.7,14.82927927]
[1769786800317,0.01103651,2718.6,2716.9,1.57494576]
[1769786800549,0.01103894,2719.7,2717.1,14.28913518]
[1769786800694,0.01103894,2719.6,2717.9,13.36904499]
[1769786800898,0.01103265,2720.7,2718.4,13.36904499]
[1769786801134,0.01103894,2719.6,2717.6,13.36904499]
[1769786801431,0.01103894,2719.2,2717.7,1.3369045]
[1769786801641,0.01103894,2718.9,2717.5,13.36904499]
[1769786801940,0.01103894,2719.0,2717.5,13.36904499]
[1769786802141,0.01103894,2719.5,2717.5,13.36904499]
[1769786802314,0.01103894,2719.3,2717.5,13.36904499]
[1769786802499,0.01103894,2718.9,2717.4,3.6799481]
[1769786802699,13.87593535,2719.9,2717.3,13.36904499]
[1769786802700,0.01103894,2719.3,2717.5,1.70489931]
[1769786802935,0.01103894,2719.1,2717.5,1.70489931]
[1769786803233,0.01103894,2719.6,2717.5,1.70489931]
[1769786803405,0.01103894,2719.8,2717.8,0.91984599]
[1769786803609,13.88697429,2719.6,2717.2,0.771]
[1769786803808,0.01103894,2719.0,2717.0,13.36904499]
[1769786804009,2.822373,2719.3,2717.0,13.36904499]
[1769786804217,0.01103894,2718.7,2716.6,1.23329782]
[1769786804409,0.01103894,2718.3,2716.6,2.1535626]
[1769786804730,0.01103894,2718.7,2716.7,1.55226076]
[1769786804920,0.01103894,2718.5,2716.7,1.55226076]
[1769786805227,0.1024,2719.3,2716.7,1.55226076]
[1769786805443,0.01103915,2718.5,2716.7,1.55226076]
[1769786805627,0.01103915,2718.7,2716.7,1.55226076]
[1769786805928,0.01103915,2718.5,2716.8,0.24725219]
[1769786806116,0.01103915,2718.4,2716.8,0.24725219]
[1769786806428,0.01103915,2718.7,2716.9,0.92016636]
[1769786806606,0.01103915,2718.5,2716.8,0.24725219]
[1769786806811,0.01103915,2718.5,2716.8,1.16744809]
[1769786807008,0.01103915,2718.7,2716.9,0.27197089]
[1769786807410,0.01103915,2718.5,2716.9,0.27197089]
[1769786807728,0.01103915,2718.7,2716.9,0.27197089]
[1769786807943,0.01103915,2718.5,2716.9,0.27197089]
[1769786808102,0.01103915,2718.3,2716.9,0.27197089]
[1769786808298,0.01103915,2718.5,2716.9,0.27197089]
[1769786808529,0.01103915,2718.1,2716.9,0.27197089]
[1769786808933,0.01103915,2718.7,2716.3,13.36904499]
[1769786809134,0.01103915,2718.9,2716.9,0.92015983]
[1769786809300,0.01103894,2719.1,2717.0,14.14004499]
[1769786809504,0.01103955,2718.5,2716.4,13.60261529]
[1769786809699,0.01103955,2718.5,2716.7,0.92021022]
[1769786809929,0.01103955,2718.5,2716.4,13.36904499]
[1769786810128,0.01103955,2718.3,2716.5,1.4140045]
[1769786810330,0.01103955,2718.3,2716.5,2.33428242]
[1769786810504,0.01103955,2718.3,2716.6,0.9202661]
[1769786810704,0.01103976,2718.1,2717.1,0.002]
[1769786811536,0.01103976,2718.1,2716.1,0.0192386]
[1769786811537,0.01103976,2717.5,2716.1,0.0192386]
[1769786811718,0.01103976,2717.3,2716.1,0.0192386]
[1769786811921,1.29044898,2717.5,2716.1,0.9396587]
[1769786812147,0.01103976,2717.9,2716.3,0.92036722]
[1769786812311,0.01103976,2717.9,2716.1,0.0192386]
[1769786812506,0.01103976,2717.9,2716.1,0.93964505]
[1769786812920,0.01103955,2718.7,2716.1,14.30869004]
[1769786813117,0.0110424,2718.3,2716.1,14.30869004]
[1769786813320,0.01103955,2718.7,2716.3,13.36904499]
[1769786813544,0.0110424,2718.5,2716.4,13.60261529]
[1769786813840,0.0110424,2718.5,2716.4,13.36904499]
[1769786814041,0.0110424,2718.1,2716.4,13.36904499]
[1769786814223,0.0110424,2718.0,2716.4,13.36904499]
[1769786814539,0.0110424,2718.3,2716.6,0.92026798]
[1769786814740,0.0110424,2718.1,2716.6,0.92026798]
[1769786815243,0.0110424,2718.2,2716.6,14.28931297]
[1769786815425,0.0110424,2718.5,2716.6,14.28931297]
[1769786815426,0.0110424,2718.1,2716.6,14.28931297]
[1769786815629,0.0110424,2718.3,2716.6,14.28931297]
[1769786815810,0.0110424,2718.1,2716.7,1.93072894]
[1769786816008,0.0110424,2717.7,2716.2,14.14004499]
[1769786816234,0.0110424,2717.7,2716.3,0.92034917]
[1769786816630,0.0110424,2717.7,2716.2,1.69137875]
[1769786817140,0.0110424,2718.3,2716.2,1.69137875]
[1769786817453,0.0110424,2718.1,2716.2,15.06042374]
[1769786817741,0.0110424,2717.9,2716.3,1.87613993]
[1769786818144,0.0110424,2718.1,2716.3,1.87613993]
[1769786818145,0.0110424,2718.1,2716.3,15.24518492]
[1769786818441,0.0110424,2718.5,2716.3,15.24518492]
[1769786818648,0.0110424,2718.3,2716.5,13.36904499]
[1769786818939,0.0110424,2718.5,2716.5,13.36904499]
[1769786819148,0.0110424,2718.4,2716.7,13.36904499]
[1769786819924,0.0110424,2718.2,2716.7,13.36904499]
[1769786820320,0.0110424,2718.4,2716.7,13.36904499]
[1769786820516,0.0110424,2718.4,2716.6,1.42893807]
[1769786820517,0.0110424,2718.8,2717.0,14.28917748]
[1769786820747,13.88697429,2719.4,2717.1,1.79697075]
[1769786820748,0.0110424,2718.3,2717.1,1.79697075]
[1769786820945,0.0110424,2718.1,2716.6,0.92026583]
[1769786821122,13.88697775,2718.7,2716.5,0.771]
[1769786821123,0.0110424,2718.2,2716.7,0.92021729]
[1769786821541,0.0110424,2718.2,2716.5,14.14004499]
[1769786821766,0.0110424,2717.8,2716.1,0.93967087]
[1769786822060,0.0110424,2717.9,2716.3,0.92034575]
[1769786822355,0.0110424,2718.2,2716.4,0.92033443]
[1769786822521,0.0110424,2718.0,2716.2,0.9204035]
[1769786822722,0.0110424,2717.6,2716.1,0.0192386]
[1769786822919,13.88697775,2717.4,2716.1,0.0192386]
[1769786823154,13.87593535,2716.7,2716.3,0.002]
[1769786823375,3.984027,2716.2,2715.0,0.35]
[1769786823553,0.0110426,2716.0,2715.0,0.35]
[1769786823757,0.0110426,2716.0,2715.0,0.3692386]
[1769786824059,0.0110426,2716.6,2715.0,0.3692386]
[1769786824060,0.01104768,2716.5,2715.1,0.0192386]
[1769786824284,0.01104768,2716.4,2715.1,0.0192386]
[1769786824563,0.01104768,2717.0,2715.2,14.28978747]
[1769786824780,0.01104768,2716.9,2715.3,1.7991996]
[1769786824990,0.01104768,2717.1,2715.3,1.8184382]
[1769786825260,0.01104768,2717.4,2715.3,15.95948319]
[1769786825556,0.01104768,2717.4,2715.3,1.8184382]
[1769786825557,0.00736768,2716.7,2715.3,1.8184382]
[1769786825735,0.01104768,2716.5,2715.3,0.0192386]
[1769786825934,0.01104768,2716.4,2715.3,0.0192386]
[1769786826175,0.01104768,2716.0,2715.3,0.0192386]
[1769786826520,0.01104768,2716.6,2715.3,0.0192386]
[1769786826744,0.01104768,2716.4,2715.3,0.0192386]
[1769786826945,0.01104768,2716.2,2715.3,0.0192386]
[1769786827152,0.01104768,2716.0,2715.3,0.0192386]
[1769786828054,0.01104768,2715.9,2715.0,0.352]
[1769786828258,0.01104768,2716.2,2715.0,0.352]
[1769786828647,0.772,2716.7,2715.0,1.27279149]
[1769786828648,0.01104768,2716.5,2715.0,1.27279149]
[1769786828849,0.01104768,2716.5,2715.1,0.4956155]
[1769786829159,0.01104768,2716.4,2715.0,0.352]
[1769786829332,0.01104768,2716.6,2715.0,1.27279803]
[1769786829532,0.01104768,2716.6,2715.0,0.352]
[1769786829533,0.01104768,2716.2,2715.0,0.352]
[1769786829734,0.01104768,2715.8,2715.0,0.352]
[1769786829953,0.01104768,2715.8,2712.4,1.83971951]
[1769786829954,13.78969991,2714.4,2712.8,0.19138178]
[1769786830157,0.01104768,2714.5,2712.7,0.0848947]
[1769786830158,0.01105542,2713.0,2712.7,0.0848947]
[1769786830327,0.01105542,2713.4,2711.4,0.92201201]
[1769786830528,0.1914,2713.6,2711.4,14.68236218]
[1769786830763,0.01105542,2713.5,2711.4,14.68236218]
[1769786830961,0.01105542,2714.7,2711.8,13.76035017]
[1769786831164,0.01105766,2714.2,2712.0,13.76035017]
[1769786831459,0.01105766,2714.1,2712.0,13.76035017]
[1769786831661,0.01105766,2713.5,2712.0,13.76035017]
[1769786831956,0.01105766,2713.1,2711.5,1.83704938]
[1769786832263,0.01106072,2713.5,2711.5,15.59739955]
[1769786832436,0.01106072,2713.5,2711.4,0.92201201]
[1769786832437,0.01106072,2712.9,2711.6,1.65194116]
[1769786832643,0.01106072,2713.1,2711.3,13.76035017]
[1769786832851,0.01106072,2713.0,2711.3,13.76035017]
[1769786833164,0.01106133,2714.0,2711.7,13.76035017]
[1769786833455,0.01105542,2715.6,2711.2,3.69919292]
[1769786833456,0.01106133,2713.5,2711.9,13.76035017]
[1769786833765,0.01106133,2713.5,2711.2,3.68813159]
[1769786833766,0.01106133,2712.6,2711.2,13.76035017]
[1769786834067,0.01106133,2713.6,2711.2,13.76035017]
[1769786834308,0.01106235,2713.5,2711.2,13.76035017]
[1769786834460,0.01106235,2713.9,2711.3,15.14744754]
[1769786834659,0.01106235,2713.9,2711.5,13.76035017]
[1769786834660,0.01106235,2713.7,2711.5,13.76035017]
[1769786834907,0.66327222,2714.5,2712.3,13.76035017]
[1769786835066,13.78969991,2714.4,2711.9,0.01106235]
[1769786835264,0.01106235,2713.1,2711.0,0.00700867]
[1769786835573,15.17088237,2713.1,2711.4,0.002]
[1769786835771,0.01106235,2713.0,2711.4,0.002]
[1769786836174,0.01106235,2712.8,2711.4,0.002]
[1769786836493,0.01106235,2713.0,2711.4,0.002]
[1769786836694,0.01106235,2712.8,2711.4,0.002]
[1769786836994,0.01106235,2713.0,2711.4,0.002]
[1769786837195,0.772,2713.1,2711.4,0.002]
[1769786837368,0.01106235,2712.8,2711.4,0.002]
[1769786837571,0.01106235,2712.6,2711.4,0.002]
[1769786837763,0.01106235,2712.4,2711.4,0.002]
[1769786837965,0.01106235,2712.8,2711.4,0.002]
[1769786838189,0.01106235,2712.6,2711.4,0.002]
[1769786838497,0.01106235,2712.4,2711.4,0.002]
[1769786838696,0.01106235,2712.4,2710.4,3.68947583]
[1769786838697,0.01106235,2711.0,2708.7,13.76035017]
[1769786838897,13.78969991,2712.3,2709.1,13.76035017]
[1769786839067,0.01106786,2711.9,2710.1,13.76035017]
[1769786839269,0.01106786,2712.1,2710.2,13.76035017]
[1769786839468,0.01106786,2712.2,2710.8,0.92220889]
[1769786839778,0.01106786,2712.1,2710.9,0.92218239]
[1769786839979,0.01106786,2712.3,2711.0,0.92216355]
[1769786840174,0.01106786,2713.0,2711.1,0.46108681]
[1769786840175,0.01106786,2712.4,2711.1,0.46108681]
[1769786840373,0.01106786,2712.1,2710.4,0.773]
[1769786840596,0.01106786,2713.0,2710.7,13.76035017]
[1769786840796,0.01106786,2712.6,2710.8,0.2335703]
[1769786841094,0.01106786,2712.5,2710.7,13.76035017]
[1769786841274,0.01106786,2712.3,2710.8,1.46826552]
[1769786841600,0.01106786,2712.1,2710.8,1.46826552]
[1769786841801,0.01106786,2712.1,2710.1,13.76035017]
[1769786841802,0.01106786,2711.6,2710.1,13.76035017]
[1769786842106,0.01106786,2711.6,2710.2,0.92243709]
[1769786842401,0.01106786,2711.6,2710.4,0.92236646]
[1769786842566,0.56695252,2713.1,2710.5,14.68266884]
[1769786842769,0.57802038,2713.1,2711.3,0.2335703]
[1769786843018,13.80076777,2714.4,2711.9,13.76035017]
[1769786843296,0.01106786,2714.2,2711.9,0.773]
[1769786843495,0.01106786,2714.0,2711.9,13.76035017]
[1769786843706,0.01106786,2713.6,2711.9,13.76035017]
[1769786843894,0.01106786,2713.6,2712.0,1.37603502]
[1769786844099,0.01106786,2714.0,2712.0,1.37603502]
[1769786844263,0.01106786,2713.6,2712.0,1.37603502]
[1769786844469,0.01106786,2713.7,2712.0,2.14903502]
[1769786844669,0.01106786,2714.1,2712.1,0.92179491]
[1769786844869,0.01106786,2714.1,2712.2,0.67580096]
[1769786845071,13.78969991,2715.0,2712.3,13.99392047]
[1769786845271,0.01106786,2714.6,2712.9,13.76035017]
[1769786845489,0.01106786,2714.2,2712.7,0.773]
[1769786845710,0.01106786,2714.1,2712.7,0.773]
[1769786845913,0.01106786,2714.4,2712.7,0.773]
[1769786846113,0.01106786,2714.3,2712.7,0.773]
[1769786846295,0.01106786,2713.5,2712.6,0.773]
[1769786846471,0.01106786,2712.8,2711.3,0.92206567]
[1769786846666,0.01106786,2712.6,2711.3,0.773]
[1769786846882,0.01106786,2712.6,2711.1,14.68246189]
[1769786846883,0.01106786,2712.4,2711.1,14.68246189]
[1769786847195,0.01106786,2712.2,2711.2,1.46824619]
[1769786847393,0.01106786,2712.1,2710.6,2.68751431]
[1769786847598,0.01106786,2712.4,2711.1,0.9221102]
[1769786847804,0.01106786,2712.3,2711.1,0.9221102]
[1769786847984,0.01106786,2712.1,2710.6,15.67486448]
[1769786848211,0.01106786,2712.3,2710.7,2.34048645]
[1769786848522,0.01106786,2711.4,2710.4,0.002]
[1769786848730,0.01106786,2711.0,2710.4,0.002]
[1769786849031,0.01106786,2710.8,2710.4,0.002]
[1769786849191,0.01106786,2711.0,2710.4,0.002]
[1769786849688,0.01106786,2711.2,2710.4,0.002]
[1769786850217,0.01106786,2711.4,2710.4,0.002]
[1769786850420,0.01106786,2711.1,2710.4,0.002]
[1769786850594,0.01106786,2711.4,2710.4,0.002]
[1769786850792,0.01106786,2711.9,2710.4,0.002]
[1769786851107,0.01106786,2712.5,2710.4,0.002]
[1769786851108,0.01106786,2712.4,2710.6,13.76035017]
[1769786851288,0.01106786,2712.4,2710.7,0.773]
[1769786851485,0.01106786,2713.0,2710.7,14.53335017]
[1769786851690,0.01106786,2713.0,2710.8,13.99392047]
[1769786851926,0.01106786,2713.0,2710.9,0.773]
[1769786851927,0.01106786,2712.4,2710.9,0.773]
[1769786852212,0.01106786,2712.6,2711.0,1.45333502]
[1769786852783,0.01106786,2712.8,2711.1,0.92213492]
[1769786852990,0.01106786,2712.1,2711.0,1.45333502]
[1769786853184,0.01106786,2712.3,2710.4,0.775]
[1769786853185,0.01106786,2711.7,2710.4,0.002]
[1769786853384,0.01106786,2711.5,2710.4,0.002]
[1769786853619,0.01106786,2711.1,2710.4,0.002]
[1769786853919,0.01106786,2710.9,2710.4,0.002]
[1769786854088,0.01106786,2711.1,2710.4,0.002]
[1769786854286,0.01106786,2711.7,2710.4,0.92436212]
[1769786854601,0.01106786,2712.4,2710.5,0.46138544]
[1769786854819,0.01106786,2711.7,2710.5,2.15672413]
[1769786855050,0.01106786,2712.4,2710.5,1.69533869]
[1769786855339,0.01106786,2712.7,2710.6,14.53335017]
[1769786855495,0.01106786,2712.8,2710.6,13.76035017]
[1769786855690,0.01106786,2712.6,2710.7,0.773]
[1769786855898,0.01106786,2712.7,2710.7,0.773]
[1769786856109,0.01106786,2712.7,2710.8,1.45333502]
[1769786856535,0.01106786,2713.0,2710.8,1.45333502]
[1769786856703,0.01106786,2712.8,2710.9,0.92220295]
[1769786857194,0.01106786,2713.1,2710.9,0.92220295]
[1769786857411,0.01106786,2712.4,2711.0,0.60643498]